[Event "58th Akiba Rubinstein B 2022"]
[Site "Polanica-Zdroj"]
[Date "2022.08.19"]
[Round "7.4"]
[White "Halhoul, Adam"]
[Black "Owoc, Jakub"]
[Result "0-1"]
[ECO "E10"]
[WhiteElo "1672"]
[BlackElo "1756"]
[Annotator "NA RC"]
[PlyCount "42"]
[EventDate "2022.08.13"]
[EventCountry "POL"]
[SourceTitle "playchess.com"]
[Source "ChessBase"]
[SourceQuality "1"]
[TimeControl "40/5400+30:1800+30"]

1. d4 {[%emt 0:00:30]} Nf6 {[%emt 0:00:07]} 2. c4 {[%emt 0:00:04]} e6 {[%emt 0:00:06]} 3. Nf3 {[%emt 0:04:32]} c5 {[%emt 0:00:07]} 4. d5 {[%emt 0:00:10]} b5 {[%emt 0:00:03]} 5. dxe6 {[%emt 0:07:10]} fxe6 {[%emt 0:00:06]} 6. cxb5 {[%emt 0:02:20]} d5 {[%emt 0:00:40]} 7. e3 {[%emt 0:00:47]} Bd6 {[%emt 0:00:23]} 8. Be2 {[%emt 0:00:37]} Bb7 {[%emt 0:00:20]} 9. O-O {[%emt 0:00:59]} O-O {[%emt 0:00:04]} 10. Ng5 {[%emt 0:09:17]} Qe8 {[%emt 0:02:47]} 11. Bg4 {[%emt 0:02:56]} Nxg4 {[%emt 0:11:49]} 12. Qxg4 {[%emt 0:00:03]} Bc8 {[%emt 0:01:17]} 13. Qe2 {[%emt 0:05:20]} h6 {[%emt 0:01:35]} 14. Nf3 {[%emt 0:00:11]} Qh5 {[%emt 0:12:24]} 15. h4 {[%emt 0:07:32]} e5 {[%emt 0:00:46]} 16. e4 {[%emt 0:01:14]} Bg4 {[%emt 0:01:41]} 17. Nbd2 {[%emt 0:00:44]} Nd7 {[%emt 0:04:36]} 18. exd5 {[%emt 0:04:11]} Rae8 {[%emt 0:00:33]} 19. Ne4 {[%emt 0:02:39]} Bxf3 {[%emt 0:00:19]} 20. gxf3 {[%emt 0:00:02]} Rxf3 {[%emt 0:00:07]} 21. Ng3 {[%emt 0:00:49]} Rxg3+ {[%emt 0:00:02]} 0-1

[Event "58th Akiba Rubinstein B 2022"]
[Site "Polanica-Zdroj"]
[Date "2022.08.19"]
[Round "7.5"]
[White "Graff, Slawomir"]
[Black "Smukowski, Bartosz"]
[Result "1/2-1/2"]
[ECO "D10"]
[WhiteElo "1782"]
[BlackElo "1696"]
[Annotator "NA RC"]
[PlyCount "26"]
[EventDate "2022.08.13"]
[EventCountry "POL"]
[SourceTitle "playchess.com"]
[Source "ChessBase"]
[SourceQuality "1"]
[TimeControl "40/5400+30:1800+30"]

1. d4 {[%emt 0:02:19]} d5 {[%emt 0:00:04]} 2. c4 {[%emt 0:00:07]} c6 {[%emt 0:00:03]} 3. cxd5 {[%emt 0:00:06]} cxd5 {[%emt 0:00:07]} 4. Nf3 {[%emt 0:00:04]} Nf6 {[%emt 0:00:40]} 5. Nc3 {[%emt 0:00:06]} Nc6 {[%emt 0:00:50]} 6. Bf4 {[%emt 0:00:11]} a6 {[%emt 0:00:25]} 7. e3 {[%emt 0:00:26]} Bf5 {[%emt 0:00:19]} 8. h3 {[%emt 0:01:32]} h6 {[%emt 0:02:34]} 9. Bd3 {[%emt 0:00:27]} Bxd3 {[%emt 0:00:35]} 10. Qxd3 {[%emt 0:00:09]} e6 {[%emt 0:00:08]} 11. a3 {[%emt 0:00:17]} Bd6 {[%emt 0:00:05]} 12. Bxd6 {[%emt 0:00:08]} Qxd6 {[%emt 0:00:05]} 13. O-O {[%emt 0:00:22]} O-O {[%emt 0:00:18]} 1/2-1/2

[Event "58th Akiba Rubinstein B 2022"]
[Site "Polanica-Zdroj"]
[Date "2022.08.19"]
[Round "7.6"]
[White "Lukasik, Zuzanna"]
[Black "Kossowski, Pawel"]
[Result "1/2-1/2"]
[ECO "C54"]
[WhiteElo "1700"]
[BlackElo "1737"]
[Annotator "NA RC"]
[PlyCount "185"]
[EventDate "2022.08.13"]
[EventCountry "POL"]
[SourceTitle "playchess.com"]
[Source "ChessBase"]
[SourceQuality "1"]
[TimeControl "40/5400+30:1800+30"]

1. e4 e5 2. Nf3 Nc6 3. Bc4 Bc5 4. c3 Nf6 5. d3 a6 6. Bb3 Ba7 7. O-O d6 8. h3 O-O 9. Nbd2 h6 10. Re1 Nh5 11. Nf1 Qf6 12. Be3 Nf4 13. Bxf4 Qxf4 14. Ne3 Ne7 15. Qe2 Be6 16. Bc2 Ng6 17. g3 Qf6 18. Kg2 Qe7 19. d4 exd4 20. cxd4 Rae8 21. Qd2 c5 22. d5 Bc8 23. b3 Bb6 24. Ng1 Qg5 25. Kh2 Qd8 26. Re2 Ba5 27. Qd3 Ne5 28. Qd1 Bd7 29. f4 Ng6 30. Nf3 Bc3 31. Rb1 Bb5 32. Bd3 Re7 33. Nf5 Ree8 34. Bxb5 axb5 35. Qd3 b4 36. Nd2 Ne7 37. Ne3 Nc8 38. Nd1 Bf6 39. Nf3 Qc7 40. Nf2 Re7 41. Rd1 Rd8 42. Re3 Bc3 43. Rc1 Rde8 44. Nd1 Bf6 45. Rc2 g6 46. Nf2 Bg7 47. Rce2 Kh7 48. Ng4 h5 49. Nf2 Qb8 50. g4 Bh6 51. g5 Bg7 52. h4 Bc3 53. Nd1 Bg7 54. f5 Be5+ 55. Nxe5 Rxe5 56. fxg6+ fxg6 57. Rf3 Qc7 58. Ref2 R5e7 59. Rf6 Rg7 60. R2f4 Qe7 61. Qf3 Qe5 62. Qf2 Na7 63. Ne3 b5 64. Kh3 Qa1 65. Kg2 Nc8 66. Rf7 Reg8 67. Rf8 Rxf8 68. Rxf8 Ne7 69. Rf7 Qe5 70. Qf3 Qb2+ 71. Kh3 Qe5 72. Qf6 Rxf7 73. Qxf7+ Qg7 74. Qe6 Qe5 75. Qxe5 dxe5 76. d6 Nc6 77. Nd5 Kg7 78. Kg3 Kf7 79. Nc7 c4 80. Kf2 c3 81. Ke2 Nd8 82. Kd3 Nb7 83. Nxb5 Ke6 84. a3 Nc5+ 85. Kc2 bxa3 86. Nxc3 Kxd6 87. b4 Ne6 88. Kb3 Nd4+ 89. Kxa3 Nf3 90. Ka4 Nxh4 91. Ka5 Nf3 92. b5 Nd4 93. b6 1/2-1/2

[Event "58th Akiba Rubinstein B 2022"]
[Site "Polanica-Zdroj"]
[Date "2022.08.19"]
[Round "7.7"]
[White "Trusz, Julia"]
[Black "Buchholz, Maja"]
[Result "0-1"]
[ECO "D11"]
[WhiteElo "1706"]
[BlackElo "1879"]
[Annotator "NA RC"]
[PlyCount "86"]
[EventDate "2022.08.13"]
[EventCountry "POL"]
[SourceTitle "playchess.com"]
[Source "ChessBase"]
[SourceQuality "1"]
[TimeControl "40/5400+30:1800+30"]

1. d4 {[%emt 0:00:09]} d5 {[%emt 0:00:06]} 2. c4 {[%emt 0:00:24]} c6 {[%emt 0:00:07]} 3. Nf3 {[%emt 0:01:14]} Nf6 {[%emt 0:00:08]} 4. Qc2 {[%emt 0:01:04]} dxc4 {[%emt 0:00:11]} 5. Qxc4 {[%emt 0:00:43]} Bf5 {[%emt 0:00:13]} 6. g3 {[%emt 0:04:07]} e6 {[%emt 0:00:13]} 7. Bg2 {[%emt 0:00:09]} Nbd7 {[%emt 0:00:12]} 8. O-O {[%emt 0:03:46]} Be7 {[%emt 0:00:21]} 9. e3 {[%emt 0:02:30]} O-O {[%emt 0:00:16]} 10. Rd1 {[%emt 0:01:01]} Qc7 {[%emt 0:00:27]} 11. Nc3 {[%emt 0:02:35]} Ne4 {[%emt 0:01:37]} 12. Bd2 {[%emt 0:04:35]} Rfd8 {[%emt 0:02:26]} 13. Rac1 {[%emt 0:07:13]} Rac8 {[%emt 0:01:22]} 14. Qa4 {[%emt 0:19:07]} b5 {[%emt 0:17:03]} 15. Qb3 {[%emt 0:00:37]} Nxc3 {[%emt 0:04:55]} 16. Qxc3 {[%emt 0:08:46]} b4 {[%emt 0:08:50]} 17. Qc4 {[%emt 0:00:48]} Nb6 {[%emt 0:05:40]} 18. Qa6 {[%emt 0:04:26]} f6 {[%emt 0:18:24]} 19. Ne1 {[%emt 0:10:21]} Bg4 {[%emt 0:00:52]} 20. f3 {[%emt 0:01:08]} Bf5 {[%emt 0:01:50]} 21. g4 {[%emt 0:07:12]} Bg6 {[%emt 0:00:37]} 22. f4 {[%emt 0:01:28]} Qd7 {[%emt 0:03:52]} 23. Kf2 {[%emt 0:08:46]} Nd5 {[%emt 0:05:24]} 24. Nc2 {[%emt 0:02:34]} c5 {[%emt 0:03:12]} 25. h4 {[%emt 0:06:44]} h5 {[%emt 0:05:19]} 26. Qe2 {[%emt 0:01:25]} hxg4 {[%emt 0:05:53]} 27. Qxg4 {[%emt 0:00:22]} Bd3 {[%emt 0:02:08]} 28. Ne1 {[%emt 0:00:36]} Bf5 {[%emt 0:01:38]} 29. Qe2 {[%emt 0:00:25]} Bh7 {[%emt 0:00:58]} 30. e4 Nb6 31. dxc5 {[%emt 0:01:03]} Bxc5+ {[%emt 0:01:37]} 32. Be3 {[%emt 0:00:35]} Bxe3+ {[%emt 0:00:32]} 33. Kxe3 {[%emt 0:00:21]} Qa4 {[%emt 0:01:30]} 34. Rxd8+ {[%emt 0:00:29]} Rxd8 {[%emt 0:00:07]} 35. b3 {[%emt 0:00:18]} Qd7 {[%emt 0:00:38]} 36. Qd3 {[%emt 0:00:38]} Qe8 {[%emt 0:01:21]} 37. Qe2 {[%emt 0:00:09]} e5 {[%emt 0:00:58]} 38. f5 {[%emt 0:00:21]} Qe7 {[%emt 0:02:52]} 39. Bf1 {[%emt 0:00:00]} g6 {[%emt 0:00:00]} 40. Qg4 Qd7 41. Bd3 {[%emt 0:07:12]} Kh8 {[%emt 0:04:07]} 42. Qf3 {[%emt 0:05:02]} gxf5 {[%emt 0:02:01]} 43. exf5 {[%emt 0:00:08]} e4 {[%emt 0:00:19]} 0-1

[Event "58th Akiba Rubinstein B 2022"]
[Site "Polanica-Zdroj"]
[Date "2022.08.19"]
[Round "7.8"]
[White "Lewandrowski, Tomasz"]
[Black "Terkiewicz, Bruno"]
[Result "0-1"]
[ECO "D00"]
[WhiteElo "1902"]
[BlackElo "1473"]
[Annotator "NA RC"]
[PlyCount "118"]
[EventDate "2022.08.13"]
[EventCountry "POL"]
[SourceTitle "playchess.com"]
[Source "ChessBase"]
[SourceQuality "1"]
[TimeControl "40/5400+30:1800+30"]

1. d4 {[%emt 0:00:01]} d5 {[%emt 0:00:05]} 2. Nc3 {[%emt 0:00:07]} Nf6 {[%emt 0:00:03]} 3. Bf4 {[%emt 0:00:06]} e6 {[%emt 0:00:08]} 4. e3 {[%emt 0:00:06]} Bb4 {[%emt 0:00:04]} 5. Bd3 {[%emt 0:02:37]} c5 {[%emt 0:00:09]} 6. dxc5 {[%emt 0:00:23]} Nbd7 {[%emt 0:00:06]} 7. Nge2 {[%emt 0:02:49]} a6 {[%emt 0:00:54]} 8. O-O {[%emt 0:01:12]} e5 {[%emt 0:00:59]} 9. Bg5 {[%emt 0:01:21]} e4 {[%emt 0:00:09]} 10. Bxe4 {[%emt 0:01:05]} dxe4 {[%emt 0:00:38]} 11. Nxe4 {[%emt 0:00:12]} Bxc5 {[%emt 0:06:17]} 12. Bxf6 {[%emt 0:01:33]} gxf6 {[%emt 0:01:01]} 13. Qd5 {[%emt 0:02:07]} Be7 {[%emt 0:01:47]} 14. Rfd1 {[%emt 0:01:20]} Nb6 {[%emt 0:05:19]} 15. Qh5 {[%emt 0:02:40]} Qc7 {[%emt 0:00:39]} 16. Nf4 {[%emt 0:02:51]} Qe5 {[%emt 0:03:03]} 17. Qf3 {[%emt 0:01:16]} Bd7 {[%emt 0:02:25]} 18. Nh5 {[%emt 0:04:47]} Bc6 {[%emt 0:12:10]} 19. Rd4 {[%emt 0:00:34]} Rg8 {[%emt 0:11:07]} 20. Nhxf6+ {[%emt 0:04:44]} Bxf6 {[%emt 0:00:58]} 21. Qxf6 {[%emt 0:00:29]} Rxg2+ {[%emt 0:00:32]} 22. Kf1 {[%emt 0:01:00]} Qxf6 {[%emt 0:00:37]} 23. Nxf6+ {[%emt 0:00:07]} Ke7 {[%emt 0:00:26]} 24. Ne4 {[%emt 0:00:54]} Rxh2 {[%emt 0:00:17]} 25. Ng3 {[%emt 0:00:26]} Rg8 {[%emt 0:06:48]} 26. Rad1 {[%emt 0:00:28]} Bb5+ {[%emt 0:02:01]} 27. Kg1 {[%emt 0:01:21]} Rh6 {[%emt 0:00:47]} 28. b3 {[%emt 0:00:20]} Bc6 {[%emt 0:00:34]} 29. Kf1 {[%emt 0:00:01]} Rf6 {[%emt 0:00:19]} 30. Ke1 {[%emt 0:00:28]} Bf3 {[%emt 0:01:36]} 31. R1d3 {[%emt 0:00:31]} Rgg6 {[%emt 0:09:19]} 32. c4 {[%emt 0:00:29]} Bg4 {[%emt 0:04:15]} 33. Ne4 {[%emt 0:00:40]} Rc6 {[%emt 0:01:18]} 34. Nc3 {[%emt 0:01:48]} f5 {[%emt 0:06:30]} 35. a4 {[%emt 0:00:51]} Rgd6 {[%emt 0:01:13]} 36. c5 {[%emt 0:01:00]} Rxd4 {[%emt 0:00:18]} 37. exd4 {[%emt 0:00:07]} Nd7 {[%emt 0:01:16]} 38. b4 {[%emt 0:00:21]} Re6+ {[%emt 0:01:23]} 39. Kf1 {[%emt 0:00:19]} Nf6 {[%emt 0:01:07]} 40. f3 {[%emt 0:00:00]} Bh3+ {[%emt 0:00:00]} 41. Kf2 {[%emt 0:01:00]} f4 {[%emt 0:02:41]} 42. b5 {[%emt 0:02:21]} Bf5 {[%emt 0:00:59]} 43. Rd2 {[%emt 0:00:53]} axb5 {[%emt 0:04:36]} 44. axb5 {[%emt 0:00:19]} Re3 {[%emt 0:00:13]} 45. Ne2 {[%emt 0:00:45]} Be4 {[%emt 0:02:43]} 46. Ng1 {[%emt 0:01:22]} Bd5 {[%emt 0:02:28]} 47. Rb2 {[%emt 0:00:28]} Rb3 {[%emt 0:01:44]} 48. Re2+ {[%emt 0:00:21]} Kd7 {[%emt 0:00:40]} 49. Re5 {[%emt 0:01:32]} Rxb5 {[%emt 0:03:34]} 50. Rf5 {[%emt 0:00:19]} Rb2+ {[%emt 0:00:43]} 51. Ke1 {[%emt 0:00:17]} Ke6 {[%emt 0:00:50]} 52. Rxf4 {[%emt 0:00:12]} Rg2 {[%emt 0:09:36]} 53. Kf1 {[%emt 0:01:16]} Rh2 {[%emt 0:00:13]} 54. Ke1 {[%emt 0:00:39]} Bc4 {[%emt 0:00:22]} 55. d5+ {[%emt 0:01:08]} Bxd5 {[%emt 0:00:33]} 56. Ra4 {[%emt 0:01:03]} Rc2 {[%emt 0:00:49]} 57. Ra5 {[%emt 0:01:28]} Nd7 {[%emt 0:00:14]} 58. Nh3 {[%emt 0:00:43]} Rxc5 {[%emt 0:01:54]} 59. Nf4+ {[%emt 0:00:26]} Ke5 0-1

[Event "58th Akiba Rubinstein B 2022"]
[Site "Polanica-Zdroj"]
[Date "2022.08.19"]
[Round "7.9"]
[White "Twardowski, Hubert"]
[Black "Rogala, Milosz"]
[Result "1/2-1/2"]
[ECO "C54"]
[WhiteElo "1849"]
[BlackElo "1837"]
[Annotator "NA RC"]
[PlyCount "52"]
[EventDate "2022.08.13"]
[EventCountry "POL"]
[SourceTitle "playchess.com"]
[Source "ChessBase"]
[SourceQuality "1"]
[TimeControl "40/5400+30:1800+30"]

1. e4 {[%emt 0:00:05]} e5 {[%emt 0:00:11]} 2. Nf3 {[%emt 0:00:26]} Nc6 {[%emt 0:00:14]} 3. Bc4 {[%emt 0:00:16]} Bc5 {[%emt 0:00:38]} 4. c3 {[%emt 0:00:44]} Nf6 {[%emt 0:00:10]} 5. d4 {[%emt 0:00:10]} exd4 {[%emt 0:00:16]} 6. cxd4 {[%emt 0:00:03]} Bb4+ {[%emt 0:00:11]} 7. Nc3 {[%emt 0:00:17]} Nxe4 {[%emt 0:07:54]} 8. O-O {[%emt 0:01:34]} Bxc3 {[%emt 0:00:32]} 9. d5 {[%emt 0:05:18]} Ne5 {[%emt 0:13:33]} 10. Qe2 {[%emt 0:42:12]} O-O {[%emt 0:19:02]} 11. bxc3 {[%emt 0:08:48]} Nxf3+ {[%emt 0:02:36]} 12. Qxf3 {[%emt 0:01:07]} Nf6 {[%emt 0:01:06]} 13. d6 {[%emt 0:06:49]} cxd6 {[%emt 0:02:04]} 14. Ba3 {[%emt 0:02:02]} Ne8 {[%emt 0:15:45]} 15. Rfe1 {[%emt 0:02:10]} Rb8 {[%emt 0:04:15]} 16. Re3 {[%emt 0:00:39]} b5 {[%emt 0:00:39]} 17. Bd5 {[%emt 0:00:11]} Rb6 {[%emt 0:00:27]} 18. Rae1 {[%emt 0:09:46]} Nf6 {[%emt 0:04:00]} 19. Bb3 {[%emt 0:07:22]} a5 {[%emt 0:06:25]} 20. g4 {[%emt 0:00:33]} Bb7 {[%emt 0:02:53]} 21. Qg3 {[%emt 0:01:17]} b4 {[%emt 0:01:27]} 22. cxb4 {[%emt 0:00:36]} axb4 {[%emt 0:00:06]} 23. Bb2 {[%emt 0:00:06]} d5 {[%emt 0:02:38]} 24. Bd4 {[%emt 0:03:01]} Re6 {[%emt 0:03:31]} 25. h3 {[%emt 0:00:34]} Bc6 {[%emt 0:03:47]} 26. Bc2 {[%emt 0:01:43]} Ne4 {[%emt 0:00:40]} 1/2-1/2

[Event "58th Akiba Rubinstein B 2022"]
[Site "Polanica-Zdroj"]
[Date "2022.08.19"]
[Round "7.10"]
[White "Turek, Michal"]
[Black "Bartlomowicz, Jakub"]
[Result "0-1"]
[ECO "C54"]
[WhiteElo "1681"]
[BlackElo "1922"]
[Annotator "NA RC"]
[PlyCount "60"]
[EventDate "2022.08.13"]
[EventCountry "POL"]
[SourceTitle "playchess.com"]
[Source "ChessBase"]
[SourceQuality "1"]
[TimeControl "40/5400+30:1800+30"]

1. e4 {[%emt 0:00:04]} e5 {[%emt 0:00:08]} 2. Nf3 {[%emt 0:00:08]} Nc6 {[%emt 0:00:06]} 3. Bc4 {[%emt 0:00:09]} Bc5 {[%emt 0:00:05]} 4. c3 {[%emt 0:00:12]} Nf6 {[%emt 0:00:03]} 5. d3 {[%emt 0:00:07]} O-O {[%emt 0:00:25]} 6. a4 {[%emt 0:00:28]} a6 {[%emt 0:00:31]} 7. O-O {[%emt 0:00:22]} d6 {[%emt 0:00:34]} 8. h3 {[%emt 0:00:40]} Ba7 {[%emt 0:00:32]} 9. Re1 {[%emt 0:00:44]} Kh8 {[%emt 0:03:01]} 10. Nbd2 {[%emt 0:01:17]} Ng8 {[%emt 0:00:27]} 11. Nf1 {[%emt 0:01:01]} f5 {[%emt 0:00:10]} 12. exf5 {[%emt 0:11:09]} Bxf5 {[%emt 0:02:44]} 13. Ng3 {[%emt 0:01:19]} Bg6 {[%emt 0:01:14]} 14. Be3 {[%emt 0:01:24]} Bxe3 {[%emt 0:07:44]} 15. Rxe3 {[%emt 0:00:07]} Nh6 {[%emt 0:02:09]} 16. Bd5 {[%emt 0:05:17]} Ne7 {[%emt 0:04:04]} 17. Be4 {[%emt 0:03:32]} Nhf5 {[%emt 0:02:15]} 18. Nxf5 {[%emt 0:00:22]} Nxf5 {[%emt 0:00:01]} 19. Re2 {[%emt 0:06:28]} c6 {[%emt 0:02:29]} 20. d4 {[%emt 0:01:33]} exd4 {[%emt 0:04:40]} 21. Nxd4 {[%emt 0:00:37]} Nxd4 {[%emt 0:00:39]} 22. Qxd4 {[%emt 0:00:05]} Rf4 {[%emt 0:03:18]} 23. Qd3 {[%emt 0:03:14]} Rxe4 {[%emt 0:00:35]} 24. Rxe4 {[%emt 0:00:35]} d5 {[%emt 0:00:00]} 25. Qe2 {[%emt 0:02:36]} dxe4 {[%emt 0:00:45]} 26. Rd1 {[%emt 0:00:15]} Qe7 {[%emt 0:01:16]} 27. Qg4 {[%emt 0:00:56]} Rd8 {[%emt 0:01:35]} 28. Re1 {[%emt 0:00:13]} Qf6 {[%emt 0:03:22]} 29. h4 {[%emt 0:01:42]} h5 {[%emt 0:04:31]} 30. Qg3 {[%emt 0:00:11]} Kh7 {[%emt 0:00:14]} 0-1

[Event "58th Akiba Rubinstein B 2022"]
[Site "Polanica-Zdroj"]
[Date "2022.08.19"]
[Round "7.11"]
[White "Nowak, Roksana"]
[Black "Bednarczyk, Mateusz"]
[Result "1-0"]
[ECO "B33"]
[WhiteElo "1779"]
[BlackElo "1925"]
[Annotator "NA RC"]
[PlyCount "31"]
[EventDate "2022.08.13"]
[EventCountry "POL"]
[SourceTitle "playchess.com"]
[Source "ChessBase"]
[SourceQuality "1"]
[TimeControl "40/5400+30:1800+30"]

1. e4 {[%emt 0:00:02]} c5 {[%emt 0:00:05]} 2. Nf3 {[%emt 0:00:14]} Nc6 {[%emt 0:00:05]} 3. d4 {[%emt 0:00:05]} cxd4 {[%emt 0:00:03]} 4. Nxd4 {[%emt 0:00:07]} Nf6 {[%emt 0:00:03]} 5. Nc3 {[%emt 0:00:07]} e6 {[%emt 0:00:02]} 6. Nxc6 {[%emt 0:00:30]} bxc6 {[%emt 0:00:04]} 7. e5 {[%emt 0:00:06]} Nd5 {[%emt 0:00:05]} 8. Ne4 {[%emt 0:00:27]} Qc7 {[%emt 0:00:03]} 9. f4 {[%emt 0:00:07]} Qb6 {[%emt 0:00:02]} 10. c4 {[%emt 0:00:24]} Bb4+ {[%emt 0:00:04]} 11. Ke2 {[%emt 0:00:22]} f5 {[%emt 0:00:31]} 12. exf6 {[%emt 0:00:13]} Nxf6 {[%emt 0:00:05]} 13. Be3 {[%emt 0:00:25]} Qa5 {[%emt 0:01:08]} 14. Nxf6+ {[%emt 0:04:33]} gxf6 {[%emt 0:00:12]} 15. Kf2 {[%emt 0:04:47]} Bc5 {[%emt 0:00:59]} 16. Qh5+ {[%emt 0:00:20]} 1-0

[Event "58th Akiba Rubinstein B 2022"]
[Site "Polanica-Zdroj"]
[Date "2022.08.19"]
[Round "7.12"]
[White "Hury, Tymoteusz"]
[Black "Jedrzejko, Martyna"]
[Result "1-0"]
[ECO "C11"]
[WhiteElo "1679"]
[BlackElo "1533"]
[Annotator "NA RC"]
[PlyCount "57"]
[EventDate "2022.08.13"]
[EventCountry "POL"]
[SourceTitle "playchess.com"]
[Source "ChessBase"]
[SourceQuality "1"]
[TimeControl "40/5400+30:1800+30"]

1. e4 {[%emt 0:00:01]} e6 {[%emt 0:00:06]} 2. Nf3 {[%emt 0:00:04]} d5 {[%emt 0:00:06]} 3. Nc3 {[%emt 0:00:07]} Nf6 {[%emt 0:00:17]} 4. e5 {[%emt 0:00:17]} Nfd7 {[%emt 0:00:07]} 5. d4 {[%emt 0:00:06]} c5 {[%emt 0:00:15]} 6. dxc5 {[%emt 0:00:11]} Nc6 {[%emt 0:00:29]} 7. Bf4 {[%emt 0:00:28]} Bxc5 {[%emt 0:00:15]} 8. Bd3 {[%emt 0:00:30]} f6 {[%emt 0:01:11]} 9. exf6 {[%emt 0:00:59]} Nxf6 {[%emt 0:00:12]} 10. Qe2 {[%emt 0:03:07]} O-O {[%emt 0:01:08]} 11. O-O-O {[%emt 0:04:51]} Bd7 {[%emt 0:01:14]} 12. Kb1 {[%emt 0:04:09]} a6 {[%emt 0:05:35]} 13. Ne5 {[%emt 0:01:25]} Bd6 {[%emt 0:04:19]} 14. Nxc6 {[%emt 0:03:07]} Bxc6 {[%emt 0:04:47]} 15. Qxe6+ {[%emt 0:00:24]} Kh8 {[%emt 0:00:09]} 16. Qxd6 {[%emt 0:00:53]} Qxd6 {[%emt 0:01:11]} 17. Bxd6 {[%emt 0:00:06]} Rfe8 {[%emt 0:00:54]} 18. Rhe1 {[%emt 0:00:48]} d4 {[%emt 0:01:23]} 19. Ne2 {[%emt 0:07:22]} Bxg2 {[%emt 0:00:38]} 20. Bg3 {[%emt 0:06:13]} Bf3 {[%emt 0:00:21]} 21. Rc1 {[%emt 0:01:19]} Rad8 {[%emt 0:00:53]} 22. Ng1 {[%emt 0:02:57]} Bc6 {[%emt 0:00:16]} 23. Rcd1 {[%emt 0:01:09]} Kg8 {[%emt 0:00:51]} 24. Kc1 {[%emt 0:00:13]} b5 {[%emt 0:02:13]} 25. Rxe8+ {[%emt 0:00:40]} Rxe8 {[%emt 0:00:07]} 26. Kd2 {[%emt 0:00:17]} Kf7 {[%emt 0:00:07]} 27. Re1 {[%emt 0:00:23]} Rxe1 {[%emt 0:00:20]} 28. Kxe1 {[%emt 0:00:05]} g6 {[%emt 0:00:21]} 29. Ne2 {[%emt 0:00:21]} 1-0

[Event "58th Akiba Rubinstein B 2022"]
[Site "Polanica-Zdroj"]
[Date "2022.08.19"]
[Round "7.13"]
[White "Jankowski, Aleksander"]
[Black "Mocko, Maciej"]
[Result "1-0"]
[ECO "A84"]
[WhiteElo "1715"]
[BlackElo "1525"]
[Annotator "NA RC"]
[PlyCount "82"]
[EventDate "2022.08.13"]
[EventCountry "POL"]
[SourceTitle "playchess.com"]
[Source "ChessBase"]
[SourceQuality "1"]
[TimeControl "40/5400+30:1800+30"]

1. d4 {[%emt 0:00:03]} f5 {[%emt 0:00:02]} 2. c4 {[%emt 0:00:05]} g6 {[%emt 0:00:00]} 3. Nc3 {[%emt 0:00:07]} Bg7 4. Nf3 {[%emt 0:00:07]} d6 {[%emt 0:00:03]} 5. e3 Nf6 {[%emt 0:00:02]} 6. Be2 {[%emt 0:00:11]} O-O {[%emt 0:00:04]} 7. O-O {[%emt 0:01:21]} c6 {[%emt 0:00:01]} 8. b4 {[%emt 0:04:33]} Qe8 {[%emt 0:01:00]} 9. Bb2 {[%emt 0:00:11]} e5 {[%emt 0:00:40]} 10. dxe5 {[%emt 0:06:39]} dxe5 {[%emt 0:05:30]} 11. c5 {[%emt 0:05:16]} Qe7 {[%emt 0:02:28]} 12. Qc2 {[%emt 0:00:56]} a5 {[%emt 0:02:54]} 13. a3 {[%emt 0:07:11]} Na6 14. Bc4+ Kh8 {[%emt 0:01:40]} 15. Qb3 {[%emt 0:01:21]} h6 {[%emt 0:02:30]} 16. Na4 e4 {[%emt 0:02:20]} 17. Nd4 {[%emt 0:05:29]} axb4 {[%emt 0:00:31]} 18. axb4 {[%emt 0:00:11]} Nc7 19. Nb6 {[%emt 0:02:28]} Rxa1 {[%emt 0:00:55]} 20. Rxa1 {[%emt 0:00:10]} Ng4 21. h3 Ne5 {[%emt 0:10:00]} 22. Ra7 {[%emt 0:11:51]} Qg5 {[%emt 0:22:00]} 23. Nxc8 {[%emt 0:08:09]} Nf3+ {[%emt 0:00:50]} 24. Nxf3 {[%emt 0:01:05]} exf3 {[%emt 0:00:05]} 25. Bxg7+ {[%emt 0:00:54]} Kxg7 {[%emt 0:00:01]} 26. g3 {[%emt 0:05:35]} Rxc8 {[%emt 0:09:40]} 27. Rxb7 {[%emt 0:00:40]} Qd8 {[%emt 0:19:59]} 28. Qc3+ {[%emt 0:04:20]} Qf6 {[%emt 0:00:01]} 29. Qd2 {[%emt 0:04:24]} Rd8 {[%emt 0:07:49]} 30. Rxc7+ {[%emt 0:02:10]} Kh8 {[%emt 0:00:01]} 31. Rd7 {[%emt 0:01:26]} Ra8 {[%emt 0:00:36]} 32. Qd4 {[%emt 0:00:45]} Ra1+ {[%emt 0:00:05]} 33. Bf1 {[%emt 0:00:21]} Qxd4 {[%emt 0:00:38]} 34. exd4 {[%emt 0:04:09]} Rb1 {[%emt 0:01:57]} 35. Rd6 {[%emt 0:01:17]} Rxb4 {[%emt 0:00:25]} 36. Rxg6 {[%emt 0:00:58]} Rxd4 {[%emt 0:00:58]} 37. Rxh6+ {[%emt 0:00:14]} Kg7 {[%emt 0:00:00]} 38. Rxc6 {[%emt 0:00:13]} Rd1 {[%emt 0:00:00]} 39. Rc8 {[%emt 0:01:46]} Rc1 40. c6 {[%emt 0:00:00]} Kh7 {[%emt 0:00:00]} 41. c7 {[%emt 0:01:01]} Kg7 {[%emt 0:00:00]} 1-0

[Event "58th Akiba Rubinstein B 2022"]
[Site "Polanica-Zdroj"]
[Date "2022.08.19"]
[Round "7.15"]
[White "Wilk, Aleksander"]
[Black "Rzenca, Jerzy"]
[Result "1/2-1/2"]
[ECO "D14"]
[WhiteElo "1569"]
[BlackElo "1668"]
[Annotator "NA RC"]
[PlyCount "26"]
[EventDate "2022.08.13"]
[EventCountry "POL"]
[SourceTitle "playchess.com"]
[Source "ChessBase"]
[SourceQuality "1"]
[TimeControl "40/5400+30:1800+30"]

1. d4 {[%emt 0:00:02]} c6 {[%emt 0:00:10]} 2. c4 {[%emt 0:00:06]} d5 {[%emt 0:00:03]} 3. cxd5 {[%emt 0:00:02]} cxd5 {[%emt 0:00:31]} 4. Nc3 {[%emt 0:00:02]} Nf6 {[%emt 0:00:07]} 5. Nf3 {[%emt 0:00:05]} Nc6 {[%emt 0:00:06]} 6. Bf4 {[%emt 0:00:07]} Bf5 {[%emt 0:00:26]} 7. e3 {[%emt 0:00:04]} e6 {[%emt 0:00:04]} 8. Bd3 {[%emt 0:00:03]} Bxd3 {[%emt 0:00:11]} 9. Qxd3 {[%emt 0:00:02]} Bd6 {[%emt 0:00:05]} 10. Bxd6 {[%emt 0:00:03]} Qxd6 {[%emt 0:00:07]} 11. O-O {[%emt 0:00:04]} O-O {[%emt 0:01:59]} 12. Rac1 {[%emt 0:00:30]} Rfc8 {[%emt 0:00:45]} 13. h3 {[%emt 0:00:06]} h6 {[%emt 0:00:08]} 1/2-1/2